fUSD/lending_fUSD_20260224
["ID","MTS","AMOUNT","RATE_DAILY","PERIOD"]
[406554922,1771939838407,-516.03,9.887e-05,2]
[406554923,1771939838416,-618.0,9.902e-05,2]
[406554924,1771939838426,-49999.99,9.924e-05,2]
[406554925,1771939838436,-509.44,9.924e-05,2]
[406554926,1771939838445,-150.99,9.924e-05,2]
[406554927,1771939838455,-9999.99,9.924e-05,2]
[406554928,1771939838465,-35000.07,9.924e-05,2]
[406554929,1771939838474,-999.99,9.924e-05,2]
[406554930,1771939838483,-499.99,9.924e-05,2]
[406554931,1771939838492,-1226.07639936,9.95e-05,2]
[406554932,1771939838501,-3571.95,9.95e-05,2]
[406554933,1771939838510,-14657.05,9.95e-05,2]
[406554934,1771939838520,-9999.99,9.95e-05,2]
[406554935,1771939838529,-9999.99,9.95e-05,2]
[406554936,1771939838538,-85370.10398741,9.95e-05,2]
[406554937,1771939838548,-233.13031893,0.0001,2]
[406554938,1771939838558,-151.0,0.0001,2]
[406554939,1771939838567,-263.29067241,0.0001,2]
[406554940,1771939838576,-151.0,0.0001,2]
[406554941,1771939838586,-151.0,0.0001,2]
[406554942,1771939838595,-151.0,0.0001,2]
[406554943,1771939838604,-151.0,0.0001,2]
[406554944,1771939838614,-151.0,0.0001,2]
[406554945,1771939838623,-151.0,0.0001,2]
[406554946,1771939838633,-151.0,0.0001,2]
[406554947,1771939838642,-151.0,0.0001,2]
[406554948,1771939838652,-151.0,0.0001,2]
[406554949,1771939838662,-151.0,0.0001,2]
[406554950,1771939838672,-151.0,0.0001,2]
[406554951,1771939838681,-151.0,0.0001,2]
[406554952,1771939838691,-151.0,0.0001,2]
[406554953,1771939838700,-151.0,0.0001,2]
[406554954,1771939838709,-151.0,0.0001,2]
[406554955,1771939838719,-151.0,0.0001,2]
[406554956,1771939838729,-151.0,0.0001,2]
[406554957,1771939838738,-151.0,0.0001,2]
[406554958,1771939838748,-151.0,0.0001,2]
[406554959,1771939838758,-151.0,0.0001,2]
[406554960,1771939838767,-151.0,0.0001,2]
[406554961,1771939838787,-151.0,0.0001,2]
[406554962,1771939838797,-151.0,0.0001,2]
[406554963,1771939838807,-151.0,0.0001,2]
[406554964,1771939838817,-151.0,0.0001,2]
[406554965,1771939838827,-151.0,0.0001,2]
[406554966,1771939838836,-198.0,0.0001,2]
[406554967,1771939838846,-151.0,0.0001,2]
[406554968,1771939838856,-814.07789084,0.0001,2]
[406554969,1771939838865,-1967.31764889,0.0001,2]
[406554970,1771939838876,-22874.58330761,0.0001,2]
[406554971,1771939838885,-250.0,0.00010018,2]
[406554972,1771939838895,-474.0,0.00010034,2]
[406554973,1771939838904,-1142.0,0.00010054,2]
[406554974,1771939838914,-500.0,0.0001007,2]
[406554975,1771939838924,-251.44,0.000101,2]
[406554976,1771939838934,-295.21912942,0.000101,2]
[406554977,1771939838943,-217.17,0.00010102,2]
[406554978,1771939838954,-151.0,0.00010123,2]
[406554979,1771939838963,-230.5825631,0.00010123,2]
[406554980,1771939838973,-284.0,0.0001013,2]
[406554981,1771939838982,-411.0,0.0001015,2]
[406554982,1771939838992,-1195.4,0.00010161,2]
[406554983,1771939839001,-180.0,0.00010171,2]
[406554984,1771939839011,-883.0,0.00010173,2]
[406554985,1771939839020,-558.46,0.0001019,2]
[406554986,1771939839030,-452.0,0.00010191,2]
[406554987,1771939839039,-1097.0,0.00010194,2]
[406554988,1771939839049,-292.35903878,0.00010195,2]
[406554989,1771939839059,-444.0,0.00010211,2]
[406554990,1771939839069,-184.0,0.00010214,2]
[406554991,1771939839079,-380.0,0.00010231,2]
[406554992,1771939839088,-1574.0,0.00010234,2]
[406554993,1771939839098,-213.0,0.00010252,2]
[406554994,1771939839108,-635.89374746,0.00010255,2]
[406554995,1771939839118,-6018.23,0.00010272,2]
[406554996,1771939839128,-175.66,0.00010313,2]
[406554997,1771939839137,-500.0,0.00010344,2]
[406554998,1771939839146,-1195.4,0.00010435,2]
[406554999,1771939839157,-1680.0,0.00010463,2]
[406555000,1771939839166,-250.0,0.00010464,2]
[406555001,1771939839179,-255.0,0.00010473,2]
[406555002,1771939839188,-500.0,0.00010618,2]
[406555003,1771939839197,-251.44,0.00010661,2]
[406555004,1771939839207,-1195.4,0.00010709,2]
[406555005,1771939839216,-250.0,0.00010719,2]
[406555006,1771939839226,-500.0,0.000108,2]
[406555007,1771939839235,-500.0,0.000108,2]
[406555008,1771939839245,-500.0,0.000108,2]
[406555009,1771939839255,-500.0,0.000108,2]
[406555010,1771939839264,-766.18657106,0.000108,2]
[406555011,1771939839273,-500.0,0.000108,2]
[406555012,1771939839282,-699.99,0.000108,2]
[406555013,1771939839291,-700.0,0.000108,2]
[406555014,1771939839301,-700.0,0.000108,2]
[406555015,1771939839310,-800.0,0.000108,2]
[406555016,1771939839320,-700.0,0.000108,2]
[406555017,1771939839329,-800.0,0.000108,2]
[406555018,1771939839339,-800.0,0.000108,2]
[406555019,1771939839348,-700.0,0.000108,2]
[406555020,1771939839358,-800.0,0.000108,2]
[406555021,1771939839367,-700.0,0.000108,2]
[406555022,1771939839376,-500.0,0.000108,2]
[406555023,1771939839385,-800.0,0.000108,2]
[406555024,1771939839394,-700.0,0.000108,2]
[406555025,1771939839403,-501.33994508,0.000108,2]
[406555026,1771939839413,-700.0,0.000108,2]
[406555027,1771939839422,-610.81241278,0.000108,2]
[406555028,1771939839431,-800.0,0.000108,2]
[406555029,1771939839441,-700.0,0.000108,2]
[406555030,1771939839450,-700.0,0.000108,2]
[406555031,1771939839459,-800.0,0.000108,2]
[406555032,1771939839468,-500.0,0.000108,2]
[406555033,1771939839478,-500.0,0.000108,2]
[406555034,1771939839487,-700.0,0.000108,2]
[406555035,1771939839496,-800.0,0.000108,2]
[406555036,1771939839506,-1600.0,0.000108,2]
[406555037,1771939839515,-500.0,0.000108,2]
[406555038,1771939839525,-500.0,0.000108,2]
[406555039,1771939839534,-700.0,0.000108,2]
[406555040,1771939839544,-800.0,0.000108,2]
[406555041,1771939839553,-1600.0,0.000108,2]
[406555042,1771939839562,-500.0,0.000108,2]
[406555043,1771939839571,-700.0,0.000108,2]
[406555044,1771939839581,-800.0,0.000108,2]
[406555045,1771939839590,-1600.0,0.000108,2]
[406555046,1771939839599,-500.0,0.000108,2]
[406555047,1771939839608,-1137.34688951,0.000108,2]
[406555048,1771939839617,-800.0,0.000108,2]
[406555049,1771939839626,-1600.0,0.000108,2]
[406555050,1771939839636,-500.0,0.000108,2]
[406555051,1771939839645,-500.0,0.000108,2]
[406555052,1771939839654,-800.0,0.000108,2]
[406555053,1771939839663,-1600.0,0.000108,2]
[406555054,1771939839673,-500.0,0.000108,2]
[406555055,1771939839682,-500.0,0.000108,2]
[406555056,1771939839691,-500.0,0.000108,2]
[406555057,1771939839700,-800.0,0.000108,2]
[406555058,1771939839710,-1600.0,0.000108,2]
[406555059,1771939839720,-500.0,0.000108,2]
[406555060,1771939839730,-1068.51170222,0.000108,2]
[406555061,1771939839740,-1600.0,0.000108,2]
[406555062,1771939839749,-500.0,0.000108,2]
[406555063,1771939839759,-500.0,0.000108,2]
[406555064,1771939839768,-500.0,0.000108,2]
[406555065,1771939839778,-1600.0,0.000108,2]
[406555066,1771939839787,-500.0,0.000108,2]
[406555067,1771939839796,-500.0,0.000108,2]
[406555068,1771939839806,-500.0,0.000108,2]
[406555069,1771939839815,-889.732786,0.000108,2]
[406555070,1771939839824,-1600.0,0.000108,2]
[406555071,1771939839833,-500.0,0.000108,2]
[406555072,1771939839842,-500.0,0.000108,2]
[406555073,1771939839851,-1600.0,0.000108,2]
[406555074,1771939839860,-500.0,0.000108,2]
[406555075,1771939839869,-918.40902476,0.000108,2]
[406555076,1771939839878,-704.38882443,0.000108,2]
[406555077,1771939839888,-1600.0,0.000108,2]
[406555078,1771939839897,-500.0,0.000108,2]
[406555079,1771939839906,-1600.0,0.000108,2]
[406555080,1771939839916,-500.0,0.000108,2]
[406555081,1771939839925,-500.0,0.000108,2]
[406555082,1771939839935,-1600.0,0.000108,2]
[406555083,1771939839944,-500.0,0.000108,2]
[406555084,1771939839954,-801.1773829,0.000108,2]
[406555085,1771939839963,-1818.2084599,0.000108,2]
[406555086,1771939839974,-500.0,0.000108,2]
[406555087,1771939839983,-500.0,0.000108,2]
[406555088,1771939839993,-500.0,0.000108,2]
[406555089,1771939840002,-500.0,0.000108,2]
[406555090,1771939840012,-500.0,0.000108,2]
[406555091,1771939840022,-500.0,0.000108,2]
[406555092,1771939840031,-500.0,0.000108,2]
[406555093,1771939840041,-500.0,0.000108,2]
[406555094,1771939840285,-500.0,0.000108,2]
[406555095,1771939840300,-500.0,0.000108,2]
[406555096,1771939840310,-500.0,0.000108,2]
[406555097,1771939840319,-500.0,0.000108,2]
[406555098,1771939840328,-500.0,0.000108,2]
[406555099,1771939840337,-500.0,0.000108,2]
[406555100,1771939840346,-500.0,0.000108,2]
[406555101,1771939840355,-500.0,0.000108,2]
[406555102,1771939840365,-500.0,0.000108,2]
[406555103,1771939840373,-500.0,0.000108,2]
[406555104,1771939840383,-500.71112286,0.000108,2]
[406555105,1771939840391,-500.0,0.000108,2]
[406555106,1771939840401,-823.91748752,0.000108,2]
[406555107,1771939840410,-500.0,0.000108,2]
[406555108,1771939840419,-500.0,0.000108,2]
[406555109,1771939840429,-500.0,0.000108,2]
[406555110,1771939840438,-500.0,0.000108,2]
[406555111,1771939840447,-355486.0643936,0.0001085,2]
[406555112,1771939840457,-500.0,0.00010892,2]
[406555113,1771939840466,-4697.42439604,0.000109,2]
[406555114,1771939840475,-150.0,0.00010959,2]
[406555115,1771939840484,-150.0,0.00010959,2]
[406555116,1771939840493,-166.66,0.00010959,2]
[406555117,1771939840502,-1195.4,0.00010983,2]
[406555118,1771939840511,-300.0,0.00011,2]
[406555119,1771939840520,-1800.0,0.00011,2]
[406555120,1771939840529,-166.66,0.00011068,2]
[406555121,1771939840538,-27835.45009662,0.00011099,2]
[406555122,1771939840548,-27835.45009658,0.00011099,2]
[406555123,1771939840557,-27835.45009658,0.00011099,2]
[406555124,1771939840566,-33501.99674607,0.00011099,2]
[406555125,1771939840576,-33501.99674603,0.00011099,2]
[406555126,1771939840585,-500.0,0.00011165,2]
[406555127,1771939840594,-166.66,0.00011178,2]
[406555128,1771939840604,-251.44,0.00011222,2]
[406555129,1771939840613,-3772.47,0.00011233,2]
[406555130,1771939840622,-1195.4,0.00011257,2]
[406555132,1771939840632,-166.66,0.00011288,2]
[406555133,1771939840641,-33501.99674603,0.00011318,2]
[406555135,1771939840651,-300.0,0.00011386,2]
[406555136,1771939840660,-166.66,0.00011397,2]
[406555137,1771939840669,-391.36,0.000114,2]
[406555138,1771939840678,-500.0,0.00011439,2]
[406555139,1771939840687,-166.66,0.00011507,2]
[406555140,1771939840696,-2351.0,0.00011509,2]
[406555141,1771939840706,-433.0,0.0001152,2]
[406555142,1771939840715,-1195.4,0.00011531,2]
[406555143,1771939840724,-16914.87,0.0001163,2]
[406555144,1771939840733,-27835.45009658,0.00011656,2]
[406555145,1771939840742,-152.78,0.00011664,2]
[406555146,1771939840751,-500.0,0.00011713,2]
[406555147,1771939840760,-251.44,0.00011783,2]
[406555148,1771939840769,-1195.47950757,0.00011805,2]
[406555149,1771939840778,-500.0,0.00011987,2]
[406555150,1771939840787,-1965.0,0.00012,3]
[406555151,1771939840797,-355486.0643936,0.00012033,2]
[406555152,1771939840806,-500.0,0.00012261,2]
[406555153,1771939840816,-33501.99674603,0.00012266,2]
[406555154,1771939840825,-251.44,0.00012344,2]
[406555155,1771939840834,-27835.45009658,0.000124,2]
[406555156,1771939840843,-500.0,0.00012535,2]
[406555157,1771939840853,-3292.0,0.0001266,2]
[406555158,1771939840862,-736.0,0.00012672,2]
[406555159,1771939840871,-500.0,0.00012809,2]
[406555160,1771939840880,-251.44,0.00012905,2]
[406555161,1771939840889,-500.0,0.00013073,2]
[406555162,1771939840898,-500.0,0.00013073,2]
[406555163,1771939840907,-500.0,0.00013073,2]
[406555164,1771939840916,-500.0,0.00013073,2]
[406555165,1771939840925,-500.0,0.00013073,2]
[406555166,1771939840935,-500.0,0.00013073,2]
[406555167,1771939840944,-500.0,0.00013073,2]
[406555168,1771939840953,-500.0,0.00013073,2]
[406555169,1771939840962,-500.0,0.00013073,2]
[406555170,1771939840970,-500.0,0.00013073,2]
[406555171,1771939840979,-500.0,0.00013073,2]
[406555172,1771939840988,-500.0,0.00013083,2]
[406555173,1771939840997,-500.0,0.00013101,2]
[406555174,1771939841006,-500.0,0.00013101,2]
[406555175,1771939841015,-500.0,0.00013101,2]
[406555176,1771939841024,-500.0,0.00013101,2]
[406555177,1771939841034,-500.0,0.00013101,2]
[406555178,1771939841043,-160.64,0.00013101,2]
[406555179,1771939841052,-800.0,0.00013101,2]
[406555180,1771939841061,-700.0,0.00013101,2]
[406555181,1771939841070,-800.0,0.00013101,2]
[406555182,1771939841079,-700.0,0.00013101,2]
[406555183,1771939841089,-500.0,0.00013101,2]
[406555184,1771939841098,-800.0,0.00013101,2]
[406555185,1771939841107,-700.0,0.00013101,2]
[406555186,1771939841117,-500.0,0.00013101,2]
[406555187,1771939841126,-800.0,0.00013101,2]
[406555188,1771939841135,-700.0,0.00013101,2]
[406555189,1771939841144,-500.0,0.00013101,2]
[406555190,1771939841153,-800.0,0.00013101,2]
[406555191,1771939841162,-700.0,0.00013101,2]
[406555192,1771939841172,-800.0,0.00013101,2]
[406555193,1771939841187,-700.0,0.00013101,2]
[406555194,1771939841197,-800.0,0.00013101,2]
[406555195,1771939841206,-700.0,0.00013101,2]
[406555196,1771939841217,-800.0,0.00013101,2]
[406555197,1771939841226,-700.0,0.00013101,2]
[406555198,1771939841235,-800.0,0.00013101,2]
[406555199,1771939841244,-700.0,0.00013101,2]
[406555200,1771939841255,-1600.0,0.00013101,2]
[406555201,1771939841264,-500.0,0.00013101,2]
[406555202,1771939841274,-800.0,0.00013101,2]
[406555203,1771939841283,-700.0,0.00013101,2]
[406555204,1771939841292,-1600.0,0.00013101,2]
[406555205,1771939841301,-500.0,0.00013101,2]
[406555206,1771939841310,-800.0,0.00013101,2]
[406555207,1771939841319,-502.52910657,0.00013101,2]
[406555208,1771939841328,-700.0,0.00013101,2]
[406555209,1771939841337,-1600.0,0.00013101,2]
[406555210,1771939841347,-500.0,0.00013101,2]
[406555211,1771939841356,-800.0,0.00013101,2]
[406555212,1771939841365,-700.0,0.00013101,2]
[406555213,1771939841375,-1600.0,0.00013101,2]
[406555214,1771939841384,-500.0,0.00013101,2]
[406555215,1771939841393,-800.0,0.00013101,2]
[406555216,1771939841402,-700.0,0.00013101,2]
[406555217,1771939841411,-500.0,0.00013101,2]
[406555218,1771939841420,-1600.0,0.00013101,2]
[406555219,1771939841429,-800.0,0.00013101,2]
[406555220,1771939841439,-500.0,0.00013101,2]
[406555221,1771939841448,-1600.0,0.00013101,2]
[406555222,1771939841457,-500.0,0.00013101,2]
[406555223,1771939841466,-500.0,0.00013101,2]
[406555224,1771939841475,-500.0,0.00013101,2]
[406555225,1771939841484,-1600.0,0.00013101,2]
[406555226,1771939841493,-500.0,0.00013101,2]
[406555227,1771939841502,-500.0,0.00013101,2]
[406555228,1771939841511,-1600.0,0.00013101,2]
[406555229,1771939841519,-500.0,0.00013101,2]
[406555230,1771939841528,-500.0,0.00013101,2]
[406555231,1771939841537,-500.0,0.00013101,2]
[406555232,1771939841546,-1600.0,0.00013101,2]
[406555233,1771939841555,-500.0,0.00013101,2]
[406555234,1771939841564,-500.0,0.00013101,2]
[406555235,1771939841572,-500.0,0.00013101,2]
[406555236,1771939841581,-500.0,0.00013101,2]
[406555237,1771939841590,-500.0,0.00013101,2]
[406555238,1771939841599,-500.0,0.00013101,2]
[406555239,1771939841608,-500.0,0.00013101,2]
[406555240,1771939841617,-1600.0,0.00013101,2]
[406555241,1771939841626,-500.0,0.00013101,2]
[406555242,1771939841635,-500.0,0.00013101,2]
[406555243,1771939841644,-1600.0,0.00013101,2]
[406555244,1771939841652,-500.0,0.00013101,2]
[406555245,1771939841661,-500.0,0.00013101,2]
[406555246,1771939841670,-500.0,0.00013101,2]
[406555247,1771939841679,-500.0,0.00013101,2]
[406555248,1771939841688,-500.0,0.00013101,2]
[406555249,1771939841697,-500.0,0.00013101,2]
[406555250,1771939841706,-500.0,0.00013101,2]
[406555251,1771939841715,-500.0,0.00013101,2]
[406555252,1771939841724,-500.0,0.00013101,2]
[406555253,1771939841733,-500.0,0.00013101,2]
[406555254,1771939841742,-500.0,0.00013101,2]
[406555255,1771939841751,-500.0,0.00013101,2]
[406555256,1771939841760,-500.0,0.00013101,2]
[406555257,1771939841769,-500.0,0.00013101,2]
[406555258,1771939841778,-500.0,0.00013101,2]
[406555259,1771939841788,-500.0,0.00013101,2]
[406555260,1771939841797,-500.0,0.00013101,2]
[406555261,1771939841807,-500.0,0.00013101,2]
[406555262,1771939841816,-500.0,0.00013101,2]
[406555263,1771939841825,-500.0,0.00013101,2]
[406555264,1771939841835,-500.0,0.00013101,2]
[406555265,1771939841844,-500.0,0.00013101,2]
[406555266,1771939841853,-500.0,0.00013101,2]
[406555267,1771939841863,-500.0,0.00013101,2]
[406555268,1771939841871,-500.0,0.00013101,2]
[406555269,1771939841881,-500.0,0.00013101,2]
[406555270,1771939841890,-500.0,0.00013101,2]
[406555271,1771939841899,-500.0,0.00013101,2]
[406555272,1771939841908,-500.0,0.00013101,2]
[406555273,1771939841917,-500.0,0.00013101,2]
[406555274,1771939841926,-500.0,0.00013101,2]
[406555275,1771939841935,-500.0,0.00013101,2]
[406555276,1771939841944,-500.0,0.00013101,2]
[406555277,1771939841953,-500.0,0.00013101,2]
[406555278,1771939841963,-500.0,0.00013101,2]
[406555279,1771939841972,-500.0,0.00013101,2]
[406555280,1771939841981,-500.0,0.00013101,2]
[406555281,1771939841990,-500.0,0.00013101,2]
[406555282,1771939841999,-500.0,0.00013101,2]
[406555283,1771939842008,-500.0,0.00013101,2]
[406555284,1771939842017,-500.0,0.00013101,2]
[406555285,1771939842026,-27835.45009658,0.00013144,2]
[406555286,1771939842035,-200.0,0.00013172,2]
[406555287,1771939842044,-11268.33036729,0.00013209,2]
[406555288,1771939842053,-2590.74647568,0.00013209,2]
[406555289,1771939842062,-33501.99674603,0.00013213,2]
[406555290,1771939842071,-355486.0643936,0.00013216,2]
[406555291,1771939842080,-1227.65,0.00013309,2]
[406555292,1771939842089,-500.0,0.00013357,2]
[406555293,1771939842098,-3240.0,0.00013425,2]
[406555294,1771939842107,-251.44,0.00013466,2]
[406555295,1771939842116,-151.0,0.0001352,3]
[406555296,1771939842125,-501.70650637,0.00013621,2]
[406555297,1771939842134,-1000.0,0.00013621,2]
[406555298,1771939842142,-1000.0,0.00013621,2]
[406555299,1771939842151,-235.93365693,0.00013621,2]
[406555300,1771939842160,-1000.0,0.00013621,2]
[406555301,1771939842170,-501.90132287,0.00013621,2]
[406555302,1771939842180,-1002.25561136,0.00013621,2]
[406555303,1771939842190,-1000.0,0.00013621,2]
[406555304,1771939842199,-1000.0,0.00013621,2]
[406555305,1771939842208,-1000.0,0.00013621,2]
[406555306,1771939842217,-328.54094648,0.00013621,2]
[406555307,1771939842226,-291.85083956,0.00013631,2]
[406555308,1771939842235,-19912.52,0.00013671,2]
[406555309,1771939842243,-814.07789084,0.00013687,2]
[406555310,1771939842252,-500.0,0.00013698,2]
[406555311,1771939842261,-500.0,0.00013698,2]
[406555312,1771939842270,-500.0,0.00013698,2]
[406555313,1771939842279,-500.0,0.00013698,2]
[406555314,1771939842288,-501.58967205,0.00013698,2]
[406555315,1771939842297,-500.0,0.00013698,2]
[406555316,1771939842306,-500.0,0.00013698,2]
[406555317,1771939842315,-500.0,0.00013698,2]
[406555318,1771939842324,-500.0,0.00013698,2]
[406555319,1771939842333,-500.0,0.00013698,2]
[406555320,1771939842342,-500.0,0.00013698,2]
[406555321,1771939842351,-500.0,0.00013698,2]
[406555322,1771939842359,-500.0,0.00013698,2]
[406555323,1771939842368,-500.0,0.00013698,2]
[406555324,1771939842377,-500.0,0.00013698,2]
[406555325,1771939842386,-500.0,0.00013698,2]
[406555326,1771939842395,-500.0,0.00013698,2]
[406555327,1771939842404,-500.0,0.00013698,2]
[406555328,1771939842413,-500.0,0.00013698,2]
[406555329,1771939842422,-500.0,0.00013698,2]
[406555330,1771939842431,-566.19,0.00013698,2]
[406555331,1771939842439,-566.19,0.00013698,2]
[406555332,1771939842448,-566.19,0.00013698,2]
[406555333,1771939842458,-566.19,0.00013698,2]
[406555334,1771939842467,-566.19,0.00013698,2]
[406555335,1771939842476,-566.19,0.00013698,2]
[406555336,1771939842485,-566.19,0.00013698,2]
[406555337,1771939842494,-566.19,0.00013698,2]
[406555338,1771939842503,-566.19,0.00013698,2]
[406555339,1771939842512,-566.19,0.00013698,2]
[406555340,1771939842521,-566.19,0.00013698,2]
[406555341,1771939842530,-566.19,0.00013698,2]
[406555342,1771939842539,-566.19,0.00013698,2]
[406555343,1771939842548,-566.19,0.00013698,2]
[406555344,1771939842557,-566.19,0.00013698,2]
[406555345,1771939842566,-566.19,0.00013698,2]
[406555346,1771939842575,-500.0,0.00013698,2]
[406555347,1771939842584,-500.0,0.00013698,2]
[406555348,1771939842594,-500.0,0.00013698,2]
[406555349,1771939842603,-500.0,0.00013698,2]
[406555350,1771939842612,-500.0,0.00013698,2]
[406555351,1771939842621,-500.0,0.00013698,2]
[406555352,1771939842631,-500.0,0.00013698,2]
[406555353,1771939842639,-500.0,0.00013698,2]
[406555354,1771939842649,-500.0,0.00013698,2]
[406555355,1771939842659,-500.0,0.00013698,2]
[406555356,1771939842668,-364.45426378,0.00013698,2]
[406555357,1771939842677,-591.67,0.00013698,2]
[406555358,1771939842686,-591.67,0.00013698,2]
[406555359,1771939842697,-591.67,0.00013698,2]
[406555360,1771939842706,-591.67,0.00013698,2]
[406555361,1771939842715,-591.67,0.00013698,2]
[406555362,1771939842724,-591.67,0.00013698,2]
[406555363,1771939842733,-591.67,0.00013698,2]
[406555364,1771939842741,-591.67,0.00013698,2]
[406555365,1771939842750,-591.67,0.00013698,2]
[406555366,1771939842759,-591.67,0.00013698,2]
[406555367,1771939842768,-591.67,0.00013698,2]
[406555368,1771939842777,-591.67,0.00013698,2]
[406555369,1771939842786,-591.67,0.00013698,2]
[406555370,1771939842796,-591.67,0.00013698,2]
[406555371,1771939842805,-591.67,0.00013698,2]
[406555372,1771939842814,-591.67,0.00013698,2]
[406555373,1771939842823,-500.0,0.00013698,2]
[406555374,1771939842832,-500.0,0.00013698,2]
[406555375,1771939842841,-500.0,0.00013698,2]
[406555376,1771939842850,-500.0,0.00013698,2]
[406555377,1771939842859,-500.0,0.00013698,2]
[406555379,1771939842868,-500.0,0.00013698,2]
[406555380,1771939842877,-500.0,0.00013698,2]
[406555381,1771939842886,-500.0,0.00013698,2]
[406555382,1771939842895,-500.0,0.00013698,2]
[406555383,1771939842905,-917.0,0.00013698,2]
[406555384,1771939842914,-500.0,0.00013698,2]
[406555385,1771939842923,-917.0,0.00013698,2]
[406555386,1771939842932,-500.0,0.00013698,2]
[406555387,1771939842941,-500.0,0.00013698,2]
[406555388,1771939842950,-500.0,0.00013698,2]
[406555389,1771939842959,-500.0,0.00013698,2]
[406555390,1771939842969,-500.0,0.00013698,2]
[406555392,1771939842978,-500.0,0.00013698,2]
[406555394,1771939842987,-917.0,0.00013698,2]
[406555396,1771939842996,-917.0,0.00013698,2]
[406555397,1771939843006,-917.0,0.00013698,2]
[406555398,1771939843015,-917.0,0.00013698,2]
[406555399,1771939843024,-917.0,0.00013698,2]
[406555400,1771939843034,-917.0,0.00013698,2]
[406555401,1771939843042,-917.0,0.00013698,2]
[406555402,1771939843052,-917.0,0.00013698,2]
[406555403,1771939843061,-917.0,0.00013698,2]
[406555404,1771939843070,-917.0,0.00013698,2]
[406555405,1771939843080,-917.0,0.00013698,2]
[406555406,1771939843090,-917.0,0.00013698,2]
[406555408,1771939843100,-917.0,0.00013698,2]
[406555411,1771939843110,-917.0,0.00013698,2]
[406555413,1771939843122,-500.0,0.00013698,2]
[406555414,1771939843132,-500.0,0.00013698,2]
[406555415,1771939843141,-500.0,0.00013698,2]
[406555416,1771939843150,-500.0,0.00013698,2]
[406555417,1771939843160,-500.0,0.00013698,2]
[406555418,1771939843169,-500.0,0.00013698,2]
[406555419,1771939843183,-500.0,0.00013698,2]
[406555420,1771939843192,-500.0,0.00013698,2]
[406555421,1771939843202,-500.0,0.00013698,2]
[406555422,1771939843211,-500.0,0.00013698,2]
[406555423,1771939843220,-500.0,0.00013698,2]
[406555424,1771939843230,-500.0,0.00013698,2]
[406555425,1771939843240,-500.0,0.00013698,2]
[406555426,1771939843251,-500.0,0.00013698,2]
[406555427,1771939843260,-500.0,0.00013698,2]
[406555428,1771939843270,-500.0,0.00013698,2]
[406555429,1771939843278,-500.0,0.00013698,2]
[406555430,1771939843287,-500.0,0.00013698,2]
[406555431,1771939843296,-500.0,0.00013698,2]